[Event "*** Titled Tuesday Blitz"]
[Site "Chess.com"]
[Date "2020.11.24"]
[Round "4"]
[White "Chigorinetz"]
[Black "sbouchet"]
[Result "1-0"]
[WhiteElo "2565"]
[BlackElo "2321"]
[TimeControl "180+1"]
[EndTime "10:53:47 PST"]
[Termination "Chigorinetz won by checkmate"]

1. e4 {[%clk 0:03:00.9]} 1... c5 {[%clk 0:02:59.2]} 2. Nc3 {[%clk 0:03:00]} 2...
g6 {[%clk 0:02:58.3]} 3. h4 {[%clk 0:02:56.9]} 3... h5 {[%clk 0:02:56.8]} 4. Bc4
{[%clk 0:02:54.3]} 4... Nc6 {[%clk 0:02:54.3]} 5. d3 {[%clk 0:02:54.2]} 5... Bg7
{[%clk 0:02:53.2]} 6. Nf3 {[%clk 0:02:50.5]} 6... e6 {[%clk 0:02:50.8]} 7. Bg5
{[%clk 0:02:49.2]} 7... Nge7 {[%clk 0:02:41.4]} 8. e5 {[%clk 0:02:49]} 8... Nxe5
{[%clk 0:02:30.4]} 9. Ne4 {[%clk 0:02:48]} 9... Nxf3+ {[%clk 0:01:25.9]} 10.
Qxf3 {[%clk 0:02:48.9]} 10... d5 {[%clk 0:01:25.7]} 11. Nf6+ {[%clk 0:02:48.3]}
11... Kf8 {[%clk 0:01:26.1]} 12. Bb3 {[%clk 0:02:47.7]} 12... b5 {[%clk
0:01:18.4]} 13. a4 {[%clk 0:02:38]} 13... b4 {[%clk 0:01:16.2]} 14. a5 {[%clk
0:02:36.9]} 14... Bb7 {[%clk 0:01:11]} 15. O-O {[%clk 0:02:28.2]} 15... Rc8
{[%clk 0:01:07.9]} 16. c4 {[%clk 0:02:19.7]} 16... bxc3 {[%clk 0:00:40.3]} 17.
bxc3 {[%clk 0:02:18.5]} 17... Ba8 {[%clk 0:00:39.4]} 18. Rfe1 {[%clk 0:02:03.9]}
18... c4 {[%clk 0:00:35.6]} 19. Ba4 {[%clk 0:02:03.1]} 19... Qd6 {[%clk
0:00:27]} 20. Bd7 {[%clk 0:01:56.7]} 20... Rd8 {[%clk 0:00:16.4]} 21. Bxe6
{[%clk 0:01:14.1]} 21... d4 {[%clk 0:00:16.2]} 22. Nd7+ {[%clk 0:01:08.8]} 22...
Kg8 {[%clk 0:00:12.7]} 23. Qxf7+ {[%clk 0:01:07.3]} 23... Kh7 {[%clk 0:00:13]}
24. Nf6# {[%clk 0:01:06.1]} 1-0

[Event "*** Titled Tuesday Blitz"]
[Site "Chess.com"]
[Date "2020.11.24"]
[Round "4"]
[White "Chamal_Gedgafov"]
[Black "GMaka"]
[Result "0-1"]
[WhiteElo "2175"]
[BlackElo "2425"]
[TimeControl "180+1"]
[EndTime "10:53:47 PST"]
[Termination "GMaka won by resignation"]

1. c4 {[%clk 0:03:00.9]} 1... e6 {[%clk 0:02:57.7]} 2. Nc3 {[%clk 0:03:01.8]}
2... Bb4 {[%clk 0:02:57.9]} 3. e3 {[%clk 0:03:00.8]} 3... f5 {[%clk 0:02:52.1]}
4. Nge2 {[%clk 0:02:59.2]} 4... Nf6 {[%clk 0:02:50.8]} 5. g3 {[%clk 0:02:59.4]}
5... O-O {[%clk 0:02:47.3]} 6. Bg2 {[%clk 0:02:59.8]} 6... c6 {[%clk 0:02:46.7]}
7. d4 {[%clk 0:02:58.7]} 7... d5 {[%clk 0:02:46]} 8. O-O {[%clk 0:02:57.9]} 8...
Bd7 {[%clk 0:02:45.7]} 9. a3 {[%clk 0:02:58]} 9... Bd6 {[%clk 0:02:44.3]} 10. b4
{[%clk 0:02:57.4]} 10... a6 {[%clk 0:02:37.3]} 11. Qc2 {[%clk 0:02:55.9]} 11...
Be8 {[%clk 0:02:36.5]} 12. Bb2 {[%clk 0:02:53.8]} 12... Bh5 {[%clk 0:02:32.4]}
13. cxd5 {[%clk 0:02:51.6]} 13... cxd5 {[%clk 0:02:32.2]} 14. Rac1 {[%clk
0:02:45.9]} 14... Bxe2 {[%clk 0:02:29.2]} 15. Qxe2 {[%clk 0:02:42.1]} 15... Nbd7
{[%clk 0:02:29.2]} 16. Na4 {[%clk 0:02:41.1]} 16... Qe7 {[%clk 0:02:03.2]} 17.
Nc5 {[%clk 0:02:37.2]} 17... b5 {[%clk 0:01:57.8]} 18. f3 {[%clk 0:02:33.8]}
18... Nb6 {[%clk 0:01:56.5]} 19. e4 {[%clk 0:02:33.3]} 19... Nc4 {[%clk
0:01:50]} 20. Rfe1 {[%clk 0:02:28.4]} 20... Bxc5 {[%clk 0:01:34]} 21. dxc5
{[%clk 0:02:26]} 21... fxe4 {[%clk 0:01:33]} 22. fxe4 {[%clk 0:02:25.3]} 22...
Nxe4 {[%clk 0:01:32.6]} 23. Bxe4 {[%clk 0:02:16.8]} 23... dxe4 {[%clk
0:01:32.4]} 24. Rxc4 {[%clk 0:02:09.4]} 24... bxc4 {[%clk 0:01:30.7]} 25. Qxc4
{[%clk 0:02:07.7]} 25... Qf7 {[%clk 0:01:23.3]} 26. Qd4 {[%clk 0:02:00.5]} 26...
Rad8 {[%clk 0:01:20.8]} 27. Qe3 {[%clk 0:01:55.5]} 27... Rd3 {[%clk 0:01:18.9]}
28. Qe2 {[%clk 0:01:55.2]} 28... e3 {[%clk 0:01:08.4]} 29. Be5 {[%clk 0:01:30]}
29... Qf2+ {[%clk 0:01:07]} 30. Kh1 {[%clk 0:01:28.7]} 30... Qxe2 {[%clk
0:00:50.6]} 31. Rxe2 {[%clk 0:01:29.6]} 31... Rd1+ {[%clk 0:00:51.5]} 32. Kg2
{[%clk 0:01:28.9]} 32... Rd2 {[%clk 0:00:52.4]} 0-1

[Event "*** Titled Tuesday Blitz"]
[Site "Chess.com"]
[Date "2020.11.24"]
[Round "4"]
[White "Aleksey_Sorokin"]
[Black "Chesswizard_2007"]
[Result "0-1"]
[WhiteElo "2806"]
[BlackElo "2629"]
[TimeControl "180+1"]
[EndTime "10:53:50 PST"]
[Termination "Chesswizard_2007 won on time"]

1. d4 {[%clk 0:03:00.9]} 1... Nf6 {[%clk 0:02:57.7]} 2. c4 {[%clk 0:03:00.9]}
2... c5 {[%clk 0:02:56.5]} 3. d5 {[%clk 0:02:59]} 3... a6 {[%clk 0:02:54.5]} 4.
Nc3 {[%clk 0:02:55.6]} 4... b5 {[%clk 0:02:53.3]} 5. cxb5 {[%clk 0:02:52.7]}
5... axb5 {[%clk 0:02:54.2]} 6. Nxb5 {[%clk 0:02:51.6]} 6... e6 {[%clk 0:02:54]}
7. Nc3 {[%clk 0:02:46.5]} 7... exd5 {[%clk 0:02:48.1]} 8. Nxd5 {[%clk
0:02:45.4]} 8... Nxd5 {[%clk 0:02:39.2]} 9. Qxd5 {[%clk 0:02:43.7]} 9... Nc6
{[%clk 0:02:39]} 10. e3 {[%clk 0:02:27.6]} 10... Be7 {[%clk 0:02:37.5]} 11. Nf3
{[%clk 0:02:26.8]} 11... O-O {[%clk 0:02:37.3]} 12. Bd3 {[%clk 0:02:18.6]} 12...
Nb4 {[%clk 0:02:35.5]} 13. Qxa8 {[%clk 0:02:05.2]} 13... Nxd3+ {[%clk
0:02:30.1]} 14. Kd2 {[%clk 0:01:45.1]} 14... Qb6 {[%clk 0:02:19.5]} 15. Qa4
{[%clk 0:01:00.8]} 15... Ba6 {[%clk 0:02:13.2]} 16. b3 {[%clk 0:00:32.5]} 16...
Nxf2 {[%clk 0:01:56.7]} 17. Bb2 {[%clk 0:00:30.4]} 17... Qd6+ {[%clk 0:01:52.9]}
18. Nd4 {[%clk 0:00:25.1]} 18... Nxh1 {[%clk 0:01:43.1]} 19. Rxh1 {[%clk
0:00:26]} 19... cxd4 {[%clk 0:01:43.2]} 20. Qxd4 {[%clk 0:00:26.8]} 20... Qg6
{[%clk 0:01:43.1]} 21. g3 {[%clk 0:00:25.3]} 21... Bf6 {[%clk 0:01:42.5]} 22.
Qd6 {[%clk 0:00:22.5]} 22... Bxb2 {[%clk 0:01:39.2]} 23. Qxg6 {[%clk 0:00:23.4]}
23... hxg6 {[%clk 0:01:39.8]} 24. e4 {[%clk 0:00:24.3]} 24... Be5 {[%clk
0:01:39.7]} 25. Rc1 {[%clk 0:00:24.5]} 25... Rc8 {[%clk 0:01:39.9]} 26. Rxc8+
{[%clk 0:00:23.5]} 26... Bxc8 {[%clk 0:01:40.8]} 27. a4 {[%clk 0:00:23.8]} 27...
Kf8 {[%clk 0:01:40.3]} 28. b4 {[%clk 0:00:24.2]} 28... Ke7 {[%clk 0:01:41.2]}
29. b5 {[%clk 0:00:23.9]} 29... Kd6 {[%clk 0:01:42.1]} 30. a5 {[%clk 0:00:24.2]}
30... Kc5 {[%clk 0:01:42.5]} 31. a6 {[%clk 0:00:24.8]} 31... Kb6 {[%clk
0:01:42.7]} 32. a7 {[%clk 0:00:25.6]} 32... Kxa7 {[%clk 0:01:42.8]} 33. Ke3
{[%clk 0:00:26.5]} 33... Kb6 {[%clk 0:01:43.4]} 34. h4 {[%clk 0:00:27.4]} 34...
Kxb5 {[%clk 0:01:43.7]} 35. h5 {[%clk 0:00:28.3]} 35... gxh5 {[%clk 0:01:44.6]}
36. g4 {[%clk 0:00:29.2]} 36... hxg4 {[%clk 0:01:45.5]} 0-1

[Event "*** Titled Tuesday Blitz"]
[Site "Chess.com"]
[Date "2020.11.24"]
[Round "4"]
[White "enriquebutti"]
[Black "ashookk"]
[Result "0-1"]
[WhiteElo "1951"]
[BlackElo "2239"]
[TimeControl "180+1"]
[EndTime "10:53:52 PST"]
[Termination "ashookk won by resignation"]

1. d4 {[%clk 0:03:00.8]} 1... Nf6 {[%clk 0:02:59.7]} 2. Nf3 {[%clk 0:03:00.2]}
2... c5 {[%clk 0:03:00.6]} 3. e3 {[%clk 0:02:59.6]} 3... g6 {[%clk 0:02:59.8]}
4. Bd3 {[%clk 0:02:57.9]} 4... Bg7 {[%clk 0:03:00.2]} 5. O-O {[%clk 0:02:56]}
5... O-O {[%clk 0:03:00.8]} 6. c3 {[%clk 0:02:52.9]} 6... d6 {[%clk 0:03:00.2]}
7. Nbd2 {[%clk 0:02:52.2]} 7... b6 {[%clk 0:02:59.7]} 8. Re1 {[%clk 0:02:51.4]}
8... Bb7 {[%clk 0:03:00.1]} 9. e4 {[%clk 0:02:51.3]} 9... cxd4 {[%clk
0:02:57.4]} 10. cxd4 {[%clk 0:02:50.9]} 10... Nc6 {[%clk 0:02:55.8]} 11. a3
{[%clk 0:02:50.3]} 11... e5 {[%clk 0:02:54.8]} 12. d5 {[%clk 0:02:49.8]} 12...
Ne7 {[%clk 0:02:52.4]} 13. Nf1 {[%clk 0:02:44.8]} 13... h6 {[%clk 0:02:49.4]}
14. Ng3 {[%clk 0:02:41.3]} 14... a6 {[%clk 0:02:45.7]} 15. Bd2 {[%clk
0:02:39.9]} 15... Nd7 {[%clk 0:02:43.1]} 16. Bb4 {[%clk 0:02:28.9]} 16... Nc5
{[%clk 0:02:41.9]} 17. Bxc5 {[%clk 0:02:28.2]} 17... bxc5 {[%clk 0:02:42.8]} 18.
Nd2 {[%clk 0:02:27.4]} 18... f5 {[%clk 0:02:37.2]} 19. f3 {[%clk 0:02:27]} 19...
f4 {[%clk 0:02:31.9]} 20. Ngf1 {[%clk 0:02:26.1]} 20... g5 {[%clk 0:02:32.6]}
21. Nc4 {[%clk 0:02:23.3]} 21... h5 {[%clk 0:02:28.3]} 22. h3 {[%clk 0:02:22.8]}
22... Bc8 {[%clk 0:02:27.3]} 23. Nh2 {[%clk 0:02:22.3]} 23... Ng6 {[%clk
0:02:04.2]} 24. Be2 {[%clk 0:02:18.2]} 24... Rf6 {[%clk 0:01:43.6]} 25. Qd2
{[%clk 0:02:14.1]} 25... Nf8 {[%clk 0:01:42]} 26. Qa5 {[%clk 0:02:11.8]} 26...
Qe7 {[%clk 0:01:37.1]} 27. b4 {[%clk 0:02:07.8]} 27... cxb4 {[%clk 0:01:35.1]}
28. axb4 {[%clk 0:02:07.3]} 28... Qa7+ {[%clk 0:01:30.2]} 29. Qb6 {[%clk
0:02:06.8]} 29... Nd7 {[%clk 0:01:25.2]} 30. Qxa7 {[%clk 0:02:05.5]} 30... Rxa7
{[%clk 0:01:26.1]} 31. Rec1 {[%clk 0:02:00]} 31... Bf8 {[%clk 0:01:23.1]} 32.
Nxd6 {[%clk 0:01:56.9]} 32... Bxd6 {[%clk 0:01:21.5]} 33. Rxc8+ {[%clk
0:01:56.1]} 33... Kg7 {[%clk 0:01:22.4]} 34. Rc6 {[%clk 0:01:53.3]} 34... Bxb4
{[%clk 0:01:12.7]} 35. Raxa6 {[%clk 0:01:50.8]} 35... Rxa6 {[%clk 0:01:10.3]}
36. Bxa6 {[%clk 0:01:50.2]} 36... Nc5 {[%clk 0:00:57.3]} 37. Rxf6 {[%clk
0:00:59.7]} 37... Kxf6 {[%clk 0:00:56.1]} 38. Kf2 {[%clk 0:00:59.4]} 38... Nxa6
{[%clk 0:00:55.6]} 0-1

[Event "*** Titled Tuesday Blitz"]
[Site "Chess.com"]
[Date "2020.11.24"]
[Round "4"]
[White "davidkalashian"]
[Black "GMJustin"]
[Result "1-0"]
[WhiteElo "2553"]
[BlackElo "2275"]
[TimeControl "180+1"]
[EndTime "10:53:53 PST"]
[Termination "davidkalashian won on time"]

1. d4 {[%clk 0:03:00.9]} 1... Nf6 {[%clk 0:02:53.9]} 2. c4 {[%clk 0:02:58.8]}
2... g6 {[%clk 0:02:44.8]} 3. Nc3 {[%clk 0:02:57.9]} 3... d5 {[%clk 0:02:44.3]}
4. Bf4 {[%clk 0:02:56.5]} 4... Bg7 {[%clk 0:02:43.3]} 5. e3 {[%clk 0:02:56.3]}
5... c5 {[%clk 0:02:38.1]} 6. dxc5 {[%clk 0:02:54.7]} 6... Qa5 {[%clk
0:02:37.1]} 7. Qa4+ {[%clk 0:02:45.7]} 7... Qxa4 {[%clk 0:02:35.3]} 8. Nxa4
{[%clk 0:02:45.4]} 8... Bd7 {[%clk 0:02:35.1]} 9. Nc3 {[%clk 0:02:43.9]} 9...
Ne4 {[%clk 0:02:35]} 10. Nxd5 {[%clk 0:02:16.9]} 10... Na6 {[%clk 0:02:18.3]}
11. Rb1 {[%clk 0:02:03.5]} 11... Nexc5 {[%clk 0:01:13.9]} 12. b4 {[%clk
0:01:52]} 12... Bf5 {[%clk 0:01:02.4]} 13. Rd1 {[%clk 0:01:35.4]} 13... Ne6
{[%clk 0:00:42.3]} 14. a3 {[%clk 0:01:14.9]} 14... Nxf4 {[%clk 0:00:39.7]} 15.
exf4 {[%clk 0:01:13]} 15... e6 {[%clk 0:00:32.2]} 16. Ne3 {[%clk 0:01:12.7]}
16... Bc3+ {[%clk 0:00:28.7]} 17. Ke2 {[%clk 0:01:12.1]} 17... O-O {[%clk
0:00:20.6]} 18. g4 {[%clk 0:01:02.6]} 18... Be4 {[%clk 0:00:20]} 19. f3 {[%clk
0:01:02.4]} 1-0

[Event "*** Titled Tuesday Blitz"]
[Site "Chess.com"]
[Date "2020.11.24"]
[Round "4"]
[White "zurzan"]
[Black "Julianos82"]
[Result "0-1"]
[WhiteElo "2079"]
[BlackElo "2320"]
[TimeControl "180+1"]
[EndTime "10:53:56 PST"]
[Termination "Julianos82 won on time"]

1. f4 {[%clk 0:03:00.9]} 1... e5 {[%clk 0:02:57.4]} 2. fxe5 {[%clk 0:03:01.8]}
2... Nc6 {[%clk 0:02:57]} 3. Nf3 {[%clk 0:03:02.7]} 3... g5 {[%clk 0:02:57]} 4.
d4 {[%clk 0:02:45.4]} 4... g4 {[%clk 0:02:53.7]} 5. Ng5 {[%clk 0:02:40.7]} 5...
d6 {[%clk 0:02:42.2]} 6. exd6 {[%clk 0:02:15]} 6... Bxd6 {[%clk 0:02:12.9]} 7.
Ne4 {[%clk 0:02:14]} 7... Nxd4 {[%clk 0:02:01.3]} 8. Nxd6+ {[%clk 0:02:13.1]}
8... Qxd6 {[%clk 0:02:02.2]} 9. c3 {[%clk 0:02:02.7]} 9... Nf5 {[%clk
0:01:54.7]} 10. Qxd6 {[%clk 0:02:02.1]} 10... Nxd6 {[%clk 0:01:55.5]} 11. g3
{[%clk 0:01:55.6]} 11... Bf5 {[%clk 0:01:51.9]} 12. Bg2 {[%clk 0:01:53.7]} 12...
Ne7 {[%clk 0:01:48.8]} 13. O-O {[%clk 0:01:52.3]} 13... Bg6 {[%clk 0:01:43.1]}
14. Bf4 {[%clk 0:01:48.3]} 14... O-O-O {[%clk 0:01:37.5]} 15. Be5 {[%clk
0:01:35.8]} 15... Rhe8 {[%clk 0:01:31.5]} 16. Bf6 {[%clk 0:01:30.8]} 16... Rd7
{[%clk 0:01:30.5]} 17. Nd2 {[%clk 0:01:14.5]} 17... Nef5 {[%clk 0:01:30.1]} 18.
e4 {[%clk 0:01:01.9]} 18... Ne3 {[%clk 0:01:26.1]} 19. Rf2 {[%clk 0:00:47.2]}
19... Nxg2 {[%clk 0:01:25.6]} 20. Kxg2 {[%clk 0:00:46.6]} 20... Bxe4+ {[%clk
0:01:18.4]} 21. Nxe4 {[%clk 0:00:44.1]} 21... Nxe4 {[%clk 0:01:19.3]} 22. Rf4
{[%clk 0:00:03.9]} 22... Rd2+ {[%clk 0:01:18.7]} 23. Kg1 {[%clk 0:00:02.7]}
23... h5 {[%clk 0:01:13.9]} 24. Bd4 {[%clk 0:00:02]} 24... Ng5 {[%clk
0:01:08.4]} 0-1

[Event "*** Titled Tuesday Blitz"]
[Site "Chess.com"]
[Date "2020.11.24"]
[Round "4"]
[White "champ2005"]
[Black "German_Bazeev"]
[Result "1-0"]
[WhiteElo "3021"]
[BlackElo "2676"]
[TimeControl "180+1"]
[EndTime "10:54:00 PST"]
[Termination "champ2005 won by resignation"]

1. c4 {[%clk 0:03:00.9]} 1... e5 {[%clk 0:03:00]} 2. Nc3 {[%clk 0:03:01]} 2...
d6 {[%clk 0:03:00.5]} 3. g3 {[%clk 0:03:00.5]} 3... f5 {[%clk 0:03:00.8]} 4. Bg2
{[%clk 0:03:00.8]} 4... Nf6 {[%clk 0:03:01.4]} 5. Nf3 {[%clk 0:02:57.4]} 5...
Be7 {[%clk 0:03:01.4]} 6. O-O {[%clk 0:02:57.3]} 6... O-O {[%clk 0:03:02]} 7. d3
{[%clk 0:02:57]} 7... c5 {[%clk 0:03:00.3]} 8. Rb1 {[%clk 0:02:56.7]} 8... Nc6
{[%clk 0:03:00.5]} 9. a3 {[%clk 0:02:57.4]} 9... a5 {[%clk 0:02:48.6]} 10. Ne1
{[%clk 0:02:57.5]} 10... Be6 {[%clk 0:02:31]} 11. Nc2 {[%clk 0:02:57.6]} 11...
Qd7 {[%clk 0:02:25.7]} 12. b4 {[%clk 0:02:43.2]} 12... axb4 {[%clk 0:02:20.4]}
13. axb4 {[%clk 0:02:44.1]} 13... f4 {[%clk 0:02:21]} 14. bxc5 {[%clk
0:02:39.4]} 14... dxc5 {[%clk 0:02:19.7]} 15. gxf4 {[%clk 0:02:15.7]} 15... Bh3
{[%clk 0:02:17.8]} 16. Rxb7 {[%clk 0:01:30.3]} 16... Qg4 {[%clk 0:01:38.4]} 17.
Ne3 {[%clk 0:01:26.5]} 17... Qg6 {[%clk 0:01:07.9]} 18. f5 {[%clk 0:01:26.3]}
18... Qg5 {[%clk 0:01:07.7]} 19. Ncd5 {[%clk 0:01:17.9]} 19... Bd8 {[%clk
0:00:55.9]} 20. f4 {[%clk 0:01:06.6]} 20... exf4 {[%clk 0:00:55.5]} 21. Nxf4
{[%clk 0:01:01]} 21... Bxg2 {[%clk 0:00:55.4]} 22. Ne6 {[%clk 0:00:52.7]} 22...
Qh5 {[%clk 0:00:43.4]} 23. Rxg7+ {[%clk 0:00:50.8]} 23... Kh8 {[%clk 0:00:43.2]}
24. Rxg2 {[%clk 0:00:51.7]} 24... Rf7 {[%clk 0:00:35.8]} 25. Bb2 {[%clk
0:00:48]} 25... Qh6 {[%clk 0:00:29]} 26. Ng4 {[%clk 0:00:46.2]} 1-0

[Event "*** Titled Tuesday Blitz"]
[Site "Chess.com"]
[Date "2020.11.24"]
[Round "4"]
[White "IrishMonkey"]
[Black "dosto07"]
[Result "1-0"]
[WhiteElo "2567"]
[BlackElo "2326"]
[TimeControl "180+1"]
[EndTime "10:54:02 PST"]
[Termination "IrishMonkey won by checkmate"]

1. Nf3 {[%clk 0:03:00.9]} 1... d5 {[%clk 0:02:59.2]} 2. d4 {[%clk 0:03:01.5]}
2... Nf6 {[%clk 0:02:58.2]} 3. c4 {[%clk 0:03:00.2]} 3... dxc4 {[%clk
0:02:57.2]} 4. Nc3 {[%clk 0:02:53.9]} 4... a6 {[%clk 0:02:56.4]} 5. e4 {[%clk
0:02:50]} 5... b5 {[%clk 0:02:54.6]} 6. e5 {[%clk 0:02:50.5]} 6... Nd5 {[%clk
0:02:54.7]} 7. a4 {[%clk 0:02:48.9]} 7... e6 {[%clk 0:02:52.9]} 8. axb5 {[%clk
0:02:43.1]} 8... Nb6 {[%clk 0:02:52.8]} 9. Be3 {[%clk 0:02:36.6]} 9... Bb7
{[%clk 0:02:48.6]} 10. bxa6 {[%clk 0:02:33.3]} 10... Rxa6 {[%clk 0:02:48.2]} 11.
Be2 {[%clk 0:02:28.2]} 11... Be7 {[%clk 0:02:42.6]} 12. Rxa6 {[%clk 0:02:18.9]}
12... Nxa6 {[%clk 0:02:41.5]} 13. O-O {[%clk 0:02:19]} 13... O-O {[%clk
0:02:40.1]} 14. b3 {[%clk 0:02:18]} 14... cxb3 {[%clk 0:02:38]} 15. Qxb3 {[%clk
0:02:17.9]} 15... Nb4 {[%clk 0:02:35.5]} 16. Rc1 {[%clk 0:02:14.4]} 16... N4d5
{[%clk 0:02:33.1]} 17. Nxd5 {[%clk 0:02:10.7]} 17... Bxd5 {[%clk 0:02:30.6]} 18.
Qc2 {[%clk 0:02:05.8]} 18... c6 {[%clk 0:02:23.6]} 19. Ra1 {[%clk 0:02:02.5]}
19... Qb8 {[%clk 0:02:11.3]} 20. Ng5 {[%clk 0:01:58.5]} 20... Bxg5 {[%clk
0:02:00.9]} 21. Bxg5 {[%clk 0:01:54.9]} 21... h6 {[%clk 0:01:53.1]} 22. Be7
{[%clk 0:01:50.5]} 22... Re8 {[%clk 0:01:52.3]} 23. Bd6 {[%clk 0:01:50]} 23...
Qc8 {[%clk 0:01:45.1]} 24. f4 {[%clk 0:01:45.4]} 24... Nd7 {[%clk 0:01:40.3]}
25. Ra7 {[%clk 0:01:41.7]} 25... Nf8 {[%clk 0:01:38.8]} 26. Qb1 {[%clk
0:01:34.1]} 26... Ng6 {[%clk 0:01:37.5]} 27. Bd3 {[%clk 0:01:29.6]} 27... Nxf4
{[%clk 0:01:24.2]} 28. Bh7+ {[%clk 0:01:29.3]} 28... Kh8 {[%clk 0:01:24.6]} 29.
Rxf7 {[%clk 0:01:26.3]} 29... Ne2+ {[%clk 0:00:43.4]} 30. Kh1 {[%clk 0:01:25.9]}
30... Qa6 {[%clk 0:00:39.7]} 31. Bf8 {[%clk 0:01:18.3]} 31... Bxg2+ {[%clk
0:00:18]} 32. Kxg2 {[%clk 0:01:18.2]} 32... Nf4+ {[%clk 0:00:15.2]} 33. Kh1
{[%clk 0:01:18.3]} 33... Qe2 {[%clk 0:00:06.8]} 34. Bxg7# {[%clk 0:01:13.3]} 1-0

[Event "*** Titled Tuesday Blitz"]
[Site "Chess.com"]
[Date "2020.11.24"]
[Round "4"]
[White "CakeinSpace2002"]
[Black "MarcoRiehle"]
[Result "0-1"]
[WhiteElo "2396"]
[BlackElo "2699"]
[TimeControl "180+1"]
[EndTime "10:54:02 PST"]
[Termination "MarcoRiehle won by resignation"]

1. c4 {[%clk 0:03:00]} 1... c5 {[%clk 0:02:59.8]} 2. Nc3 {[%clk 0:02:59.7]} 2...
Nf6 {[%clk 0:02:56.4]} 3. g3 {[%clk 0:02:58.4]} 3... d5 {[%clk 0:02:55.2]} 4.
Bg2 {[%clk 0:02:59.3]} 4... d4 {[%clk 0:02:55.2]} 5. Ne4 {[%clk 0:02:43.8]} 5...
Nxe4 {[%clk 0:02:43.8]} 6. Bxe4 {[%clk 0:02:44.7]} 6... f5 {[%clk 0:02:44.2]} 7.
Bg2 {[%clk 0:02:40.9]} 7... e5 {[%clk 0:02:44.1]} 8. d3 {[%clk 0:02:40.9]} 8...
Nc6 {[%clk 0:02:43.9]} 9. Nf3 {[%clk 0:02:39.6]} 9... Bd6 {[%clk 0:02:44]} 10.
Bg5 {[%clk 0:02:36.6]} 10... Qc7 {[%clk 0:02:41.3]} 11. O-O {[%clk 0:02:35]}
11... O-O {[%clk 0:02:41.2]} 12. Bd2 {[%clk 0:02:25.9]} 12... h6 {[%clk
0:02:34.4]} 13. Nh4 {[%clk 0:02:21.1]} 13... g5 {[%clk 0:02:32.1]} 14. Bd5+
{[%clk 0:02:12.7]} 14... Kh7 {[%clk 0:02:29.8]} 15. Ng2 {[%clk 0:02:12.2]} 15...
Ne7 {[%clk 0:02:26.9]} 16. f4 {[%clk 0:02:04.3]} 16... Nxd5 {[%clk 0:02:24.3]}
17. cxd5 {[%clk 0:02:05.2]} 17... gxf4 {[%clk 0:02:23.2]} 18. gxf4 {[%clk
0:02:06.1]} 18... e4 {[%clk 0:02:23.7]} 19. dxe4 {[%clk 0:02:01.1]} 19... fxe4
{[%clk 0:02:24.6]} 20. e3 {[%clk 0:02:01.1]} 20... Rg8 {[%clk 0:02:20.5]} 21.
Kh1 {[%clk 0:01:58.1]} 21... Bg4 {[%clk 0:02:19.7]} 22. Qc2 {[%clk 0:01:49.6]}
22... Bf3 {[%clk 0:02:19]} 23. Rxf3 {[%clk 0:01:49.5]} 23... d3 {[%clk
0:02:15.3]} 24. Qc4 {[%clk 0:01:47.9]} 24... exf3 {[%clk 0:02:14.3]} 25. Qe4+
{[%clk 0:01:48.1]} 25... Kh8 {[%clk 0:02:13]} 26. Bc3+ {[%clk 0:01:47]} 26...
Rg7 {[%clk 0:02:11.9]} 27. Nh4 {[%clk 0:01:37.5]} 27... f2 {[%clk 0:01:57.5]}
28. Nf5 {[%clk 0:01:19]} 28... Bf8 {[%clk 0:01:52.5]} 29. Qe6 {[%clk 0:00:57.1]}
29... Qb6 {[%clk 0:01:35.6]} 30. d6 {[%clk 0:00:49.1]} 30... Qc6+ {[%clk
0:01:35.4]} 31. e4 {[%clk 0:00:48.9]} 31... Re8 {[%clk 0:01:35.6]} 32. Qxh6+
{[%clk 0:00:41.2]} 32... Kg8 {[%clk 0:01:35.2]} 33. Ng3 {[%clk 0:00:22.5]} 33...
Rxe4 {[%clk 0:01:32.6]} 34. Kg2 {[%clk 0:00:11.7]} 34... Re6+ {[%clk 0:01:29]}
0-1

[Event "*** Titled Tuesday Blitz"]
[Site "Chess.com"]
[Date "2020.11.24"]
[Round "4"]
[White "barbara25"]
[Black "Sergey85Rodchenkov"]
[Result "0-1"]
[WhiteElo "2250"]
[BlackElo "2451"]
[TimeControl "180+1"]
[EndTime "10:54:03 PST"]
[Termination "Sergey85Rodchenkov won by resignation"]

1. e4 {[%clk 0:03:00]} 1... c5 {[%clk 0:02:59.3]} 2. Nf3 {[%clk 0:02:57.6]} 2...
d6 {[%clk 0:02:59.4]} 3. d4 {[%clk 0:02:53.4]} 3... cxd4 {[%clk 0:02:59.4]} 4.
Nxd4 {[%clk 0:02:52.5]} 4... Nf6 {[%clk 0:02:58.9]} 5. Nc3 {[%clk 0:02:50.9]}
5... a6 {[%clk 0:02:58.3]} 6. f3 {[%clk 0:02:49.4]} 6... e5 {[%clk 0:02:56.5]}
7. Nb3 {[%clk 0:02:47.9]} 7... Qb6 {[%clk 0:02:56.2]} 8. Qe2 {[%clk 0:02:46]}
8... Be6 {[%clk 0:02:55.7]} 9. Be3 {[%clk 0:02:44.3]} 9... Qc7 {[%clk
0:02:55.7]} 10. O-O-O {[%clk 0:02:43.6]} 10... Be7 {[%clk 0:02:55.4]} 11. Kb1
{[%clk 0:02:42.5]} 11... b5 {[%clk 0:02:55]} 12. g4 {[%clk 0:02:41.3]} 12... b4
{[%clk 0:02:51.5]} 13. Nd5 {[%clk 0:02:40.1]} 13... Bxd5 {[%clk 0:02:51.8]} 14.
exd5 {[%clk 0:02:39.4]} 14... Nbd7 {[%clk 0:02:51.7]} 15. g5 {[%clk 0:02:38.4]}
15... Nh5 {[%clk 0:02:51.4]} 16. Bh3 {[%clk 0:02:36.7]} 16... g6 {[%clk
0:02:04.9]} 17. Bg4 {[%clk 0:02:35.9]} 17... a5 {[%clk 0:02:02.8]} 18. Bxh5
{[%clk 0:02:34.8]} 18... gxh5 {[%clk 0:02:03.2]} 19. Nc1 {[%clk 0:02:32.9]}
19... a4 {[%clk 0:02:02.9]} 20. Bd2 {[%clk 0:02:32.2]} 20... Rb8 {[%clk
0:02:00.6]} 21. f4 {[%clk 0:02:31.8]} 21... a3 {[%clk 0:01:30.8]} 22. b3 {[%clk
0:02:30.4]} 22... exf4 {[%clk 0:01:27.5]} 23. Bxf4 {[%clk 0:02:26.3]} 23... Qc3
{[%clk 0:01:19.7]} 24. Nd3 {[%clk 0:02:24.2]} 24... Ne5 {[%clk 0:01:13.7]} 25.
Bxe5 {[%clk 0:02:21.6]} 25... dxe5 {[%clk 0:01:13.9]} 26. Qxe5 {[%clk
0:02:17.7]} 26... Qxe5 {[%clk 0:01:12.9]} 27. Nxe5 {[%clk 0:02:16.4]} 27... O-O
{[%clk 0:01:10.6]} 28. h4 {[%clk 0:02:15.3]} 28... Bd6 {[%clk 0:01:03.7]} 29.
Nc4 {[%clk 0:02:08.5]} 29... Bc5 {[%clk 0:01:02.9]} 30. Rhf1 {[%clk 0:02:06.1]}
30... Rbd8 {[%clk 0:00:58.9]} 31. c3 {[%clk 0:02:03.2]} 31... bxc3 {[%clk
0:00:57.4]} 32. Kc2 {[%clk 0:02:02.4]} 32... Rfe8 {[%clk 0:00:51.5]} 33. Kxc3
{[%clk 0:01:59.6]} 33... Re4 {[%clk 0:00:51]} 34. d6 {[%clk 0:01:55.6]} 34...
Rxh4 {[%clk 0:00:49.7]} 35. Rf5 {[%clk 0:01:55.4]} 35... Rh3+ {[%clk 0:00:48.5]}
36. Kc2 {[%clk 0:01:53.2]} 36... Bb4 {[%clk 0:00:46.8]} 37. Rb5 {[%clk
0:01:41.7]} 37... Rh2+ {[%clk 0:00:36.2]} 38. Kc1 {[%clk 0:01:40.8]} 38... Bc3
{[%clk 0:00:29.9]} 39. d7 {[%clk 0:01:36.6]} 39... Rxa2 {[%clk 0:00:26.2]} 40.
Rc5 {[%clk 0:01:35.1]} 40... Ra1+ {[%clk 0:00:22.3]} 41. Kc2 {[%clk 0:01:35.1]}
41... Rxd1 {[%clk 0:00:22.4]} 42. Nxa3 {[%clk 0:01:35.1]} 42... Bb4 {[%clk
0:00:20.2]} 0-1